[Event "69th RUS-ch Women Higher League 2019"]
[Site "Yaroslavl"]
[Date "2019.06.30"]
[Round "4.7"]
[White "Potapova, Margarita"]
[Black "Maltsevskaya, Aleksandra"]
[Result "1-0"]
[ECO "E71"]
[WhiteElo "2256"]
[BlackElo "2316"]
[Annotator "NA"]
[PlyCount "115"]
[EventDate "2019.06.27"]
[EventType "swiss"]
[EventCountry "RUS"]
[SourceTitle "playchess.com"]
[Source "ChessBase"]
[SourceQuality "1"]
[TimeControl "40/5400+30:1800+30"]

1. d4 {[%emt 0:00:00]} Nf6 {[%emt 0:00:00]} 2. c4 {[%emt 0:00:00]} g6 {[%emt 0:00:46]} 3. Nc3 {[%emt 0:00:00]} Bg7 {[%emt 0:00:07]} 4. e4 {[%emt 0:00:00]} d6 {[%emt 0:00:05]} 5. h3 {[%emt 0:01:06]} O-O {[%emt 0:00:22]} 6. Be3 {[%emt 0:00:04]} e5 {[%emt 0:09:07]} 7. d5 {[%emt 0:00:05]} Nh5 {[%emt 0:00:04]} 8. Be2 {[%emt 0:00:13]} Nf4 {[%emt 0:00:15]} 9. Bf3 {[%emt 0:00:16]} g5 {[%emt 0:04:48]} 10. g3 {[%emt 0:05:21]} Ng6 {[%emt 0:01:08]} 11. Qd2 {[%emt 0:03:24]} h6 {[%emt 0:00:51]} 12. O-O-O {[%emt 0:08:32]} f5 {[%emt 0:08:17]} 13. exf5 {[%emt 0:00:46]} Bxf5 {[%emt 0:00:05]} 14. Be4 {[%emt 0:01:28]} Qf6 {[%emt 0:06:31]} 15. Nge2 {[%emt 0:10:05]} Nd7 {[%emt 0:10:57]} 16. Qc2 {[%emt 0:06:07]} a6 {[%emt 0:04:56]} 17. Bxf5 {[%emt 0:02:15]} Qxf5 {[%emt 0:01:08]} 18. Qxf5 {[%emt 0:00:36]} Rxf5 {[%emt 0:00:06]} 19. Ne4 {[%emt 0:00:44]} Rf3 {[%emt 0:07:54]} 20. N2c3 {[%emt 0:01:11]} Ne7 {[%emt 0:01:41]} 21. Kd2 {[%emt 0:05:25]} b6 {[%emt 0:06:41]} 22. Ke2 {[%emt 0:09:15]} Rf7 {[%emt 0:00:13]} 23. b4 {[%emt 0:04:16]} Nf5 {[%emt 0:01:21]} 24. Kd3 Nd4 25. h4 {[%emt 0:06:02]} g4 {[%emt 0:05:31]} 26. h5 {[%emt 0:00:31]} b5 {[%emt 0:08:01]} 27. Rh4 {[%emt 0:08:35]} Nb6 {[%emt 0:02:03]} 28. c5 {[%emt 0:04:49]} Nc4 {[%emt 0:00:17]} 29. Rb1 {[%emt 0:03:19]} a5 {[%emt 0:08:14]} 30. Rxg4 {[%emt 0:02:08]} Kh7 {[%emt 0:00:15]} 31. cxd6 {[%emt 0:01:40]} cxd6 {[%emt 0:00:52]} 32. Rg6 {[%emt 0:01:49]} axb4 {[%emt 0:04:51]} 33. Rxb4 {[%emt 0:00:29]} Ra3 {[%emt 0:00:05]} 34. g4 {[%emt 0:06:39]} Rf3 {[%emt 0:03:00]} 35. g5 {[%emt 0:00:52]} Rxc3+ {[%emt 0:05:57]} 36. Nxc3 {[%emt 0:01:59]} Nxe3 {[%emt 0:00:12]} 37. fxe3 {[%emt 0:00:40]} Nf5 {[%emt 0:00:08]} 38. Ne4 {[%emt 0:04:05]} Rxe3+ {[%emt 0:00:50]} 39. Kd2 {[%emt 0:00:04]} Rh3 {[%emt 0:00:58]} 40. Nf6+ {[%emt 0:00:00]} Bxf6 {[%emt 0:00:00]} 41. gxf6 {[%emt 0:06:33]} Nd4 {[%emt 0:04:45]} 42. Rb1 {[%emt 0:10:17]} e4 {[%emt 0:14:12]} 43. Rf1 {[%emt 0:04:00]} e3+ {[%emt 0:02:40]} 44. Kc1 {[%emt 0:00:33]} e2 {[%emt 0:02:48]} 45. Rfg1 {[%emt 0:00:42]} Rc3+ {[%emt 0:01:28]} 46. Kd2 {[%emt 0:05:09]} Rc8 {[%emt 0:01:57]} 47. R6g3 {[%emt 0:07:35]} Rf8 {[%emt 0:02:17]} 48. Rg7+ {[%emt 0:01:51]} Kh8 {[%emt 0:00:04]} 49. R1g6 {[%emt 0:00:46]} Nf5 {[%emt 0:00:52]} 50. f7 {[%emt 0:01:20]} Ne7 {[%emt 0:00:11]} 51. Rg1 {[%emt 0:00:44]} b4 {[%emt 0:00:57]} 52. Kxe2 {[%emt 0:00:08]} b3 {[%emt 0:01:51]} 53. axb3 {[%emt 0:00:11]} Ra8 {[%emt 0:00:05]} 54. Kd3 {[%emt 0:01:22]} Rb8 {[%emt 0:00:13]} 55. f8=Q+ {[%emt 0:00:31]} Rxf8 {[%emt 0:00:05]} 56. Rxe7 {[%emt 0:00:03]} Rf5 {[%emt 0:00:15]} 57. Re8+ {[%emt 0:00:41]} Kh7 {[%emt 0:00:05]} 58. Re4 {[%emt 0:00:23]} 1-0

[Event "69th RUS-ch Women Higher League 2019"]
[Site "Yaroslavl"]
[Date "2019.06.30"]
[Round "4.8"]
[White "Chernyak, Viktoria"]
[Black "Protopopova, Anastasiya"]
[Result "0-1"]
[ECO "D10"]
[WhiteElo "2253"]
[BlackElo "2272"]
[Annotator "NA"]
[PlyCount "102"]
[EventDate "2019.06.27"]
[EventType "swiss"]
[EventCountry "RUS"]
[SourceTitle "playchess.com"]
[Source "ChessBase"]
[SourceQuality "1"]
[TimeControl "40/5400+30:1800+30"]

1. Nf3 {[%emt 0:00:00]} d5 {[%emt 0:00:00]} 2. d4 {[%emt 0:00:00]} Nf6 {[%emt 0:00:00]} 3. c4 {[%emt 0:00:19]} c6 {[%emt 0:00:00]} 4. cxd5 {[%emt 0:03:32]} cxd5 {[%emt 0:00:00]} 5. Nc3 {[%emt 0:00:11]} Nc6 {[%emt 0:01:06]} 6. g3 {[%emt 0:00:08]} Bf5 {[%emt 0:05:34]} 7. Bg2 {[%emt 0:00:46]} e6 {[%emt 0:00:59]} 8. O-O {[%emt 0:00:56]} Be7 {[%emt 0:02:16]} 9. Bf4 {[%emt 0:06:05]} O-O {[%emt 0:07:18]} 10. Rc1 {[%emt 0:03:43]} h6 {[%emt 0:03:40]} 11. Na4 {[%emt 0:09:28]} Rc8 {[%emt 0:14:49]} 12. a3 {[%emt 0:07:05]} Ne4 {[%emt 0:05:02]} 13. b4 {[%emt 0:04:15]} Nd6 {[%emt 0:05:36]} 14. Qb3 {[%emt 0:12:12]} Nc4 {[%emt 0:06:44]} 15. Nb2 {[%emt 0:08:04]} g5 {[%emt 0:06:38]} 16. Be3 {[%emt 0:00:50]} g4 {[%emt 0:06:53]} 17. Ne5 {[%emt 0:03:58]} Nxe3 {[%emt 0:04:57]} 18. fxe3 {[%emt 0:06:06]} Nxe5 {[%emt 0:00:43]} 19. dxe5 {[%emt 0:00:04]} Bg5 {[%emt 0:02:28]} 20. Rxc8 {[%emt 0:03:59]} Qxc8 {[%emt 0:00:03]} 21. e4 {[%emt 0:00:13]} dxe4 {[%emt 0:04:09]} 22. Nc4 {[%emt 0:00:21]} Bg6 {[%emt 0:01:56]} 23. Nd6 {[%emt 0:02:12]} Qc6 {[%emt 0:00:20]} 24. Rd1 {[%emt 0:02:23]} Rd8 {[%emt 0:02:06]} 25. Kf1 {[%emt 0:03:10]} Be7 {[%emt 0:10:21]} 26. Qe3 {[%emt 0:04:18]} Qc2 {[%emt 0:06:17]} 27. Re1 {[%emt 0:06:55]} Bxd6 {[%emt 0:00:31]} 28. exd6 {[%emt 0:00:04]} Rxd6 {[%emt 0:00:07]} 29. Qxh6 {[%emt 0:02:04]} Rc6 {[%emt 0:03:10]} 30. Qf4 {[%emt 0:01:01]} Bf5 {[%emt 0:00:43]} 31. Qb8+ {[%emt 0:01:17]} Kg7 {[%emt 0:00:01]} 32. Qxb7 {[%emt 0:00:10]} Rc3 {[%emt 0:00:19]} 33. Qd7 {[%emt 0:03:21]} Rxa3 {[%emt 0:00:32]} 34. Qd4+ {[%emt 0:00:04]} Kg6 {[%emt 0:00:41]} 35. Qd8 {[%emt 0:00:52]} Qc3 {[%emt 0:00:58]} 36. Rd1 {[%emt 0:00:34]} Ra1 {[%emt 0:00:12]} 37. Qg8+ {[%emt 0:00:24]} Kh6 {[%emt 0:00:08]} 38. Qf8+ {[%emt 0:00:11]} Kg6 {[%emt 0:00:07]} 39. Qg8+ {[%emt 0:00:03]} Kh6 {[%emt 0:00:07]} 40. Qf8+ {[%emt 0:00:00]} Kh5 {[%emt 0:00:00]} 41. Qxf7+ {[%emt 0:01:45]} Bg6 {[%emt 0:03:15]} 42. Qd7 {[%emt 0:00:07]} e3 {[%emt 0:11:25]} 43. Kg1 {[%emt 0:13:51]} Rxd1+ {[%emt 0:01:56]} 44. Qxd1 {[%emt 0:00:08]} Qxb4 {[%emt 0:00:15]} 45. Qa1 {[%emt 0:01:04]} Qb1+ {[%emt 0:00:59]} 46. Qxb1 {[%emt 0:00:03]} Bxb1 {[%emt 0:00:04]} 47. h3 {[%emt 0:05:06]} a5 {[%emt 0:00:35]} 48. Bc6 {[%emt 0:00:20]} gxh3 {[%emt 0:01:25]} 49. Ba4 {[%emt 0:00:27]} Bf5 {[%emt 0:00:46]} 50. Kh2 {[%emt 0:00:04]} Bg4 {[%emt 0:00:28]} 51. Bb5 {[%emt 0:00:27]} Kg5 {[%emt 0:00:07]} 0-1

[Event "69th RUS-ch Women Higher League 2019"]
[Site "Yaroslavl"]
[Date "2019.06.30"]
[Round "4.9"]
[White "Galliamova, Alisa"]
[Black "Paramzina, Anastasya"]
[Result "1-0"]
[ECO "A48"]
[WhiteElo "2444"]
[BlackElo "2300"]
[Annotator "NA"]
[PlyCount "97"]
[EventDate "2019.06.27"]
[EventType "swiss"]
[EventCountry "RUS"]
[SourceTitle "playchess.com"]
[Source "ChessBase"]
[SourceQuality "1"]
[TimeControl "40/5400+30:1800+30"]

1. d4 {[%emt 0:00:00]} Nf6 {[%emt 0:00:00]} 2. Nf3 {[%emt 0:00:00]} g6 {[%emt 0:00:00]} 3. Bf4 {[%emt 0:00:00]} Bg7 {[%emt 0:00:00]} 4. e3 {[%emt 0:00:00]} d6 {[%emt 0:00:14]} 5. Be2 {[%emt 0:00:12]} Nc6 {[%emt 0:00:47]} 6. h3 {[%emt 0:00:44]} O-O {[%emt 0:00:07]} 7. O-O {[%emt 0:01:04]} Nd7 {[%emt 0:00:19]} 8. e4 {[%emt 0:15:47]} Nxd4 {[%emt 0:20:13]} 9. Nxd4 {[%emt 0:00:40]} e5 {[%emt 0:00:07]} 10. Be3 {[%emt 0:00:37]} exd4 {[%emt 0:00:04]} 11. Bxd4 {[%emt 0:00:05]} Bxd4 {[%emt 0:00:17]} 12. Qxd4 {[%emt 0:00:07]} Qf6 {[%emt 0:00:03]} 13. c3 {[%emt 0:23:15]} Re8 {[%emt 0:07:24]} 14. Nd2 {[%emt 0:01:08]} c5 {[%emt 0:19:22]} 15. Qxf6 {[%emt 0:09:34]} Nxf6 {[%emt 0:00:04]} 16. Bd3 {[%emt 0:10:45]} b6 {[%emt 0:07:32]} 17. f3 {[%emt 0:11:07]} Bb7 {[%emt 0:03:43]} 18. c4 {[%emt 0:00:19]} Nd7 {[%emt 0:04:57]} 19. Rad1 {[%emt 0:02:01]} Ne5 {[%emt 0:03:26]} 20. Nb1 {[%emt 0:00:11]} Nc6 {[%emt 0:00:28]} 21. Nc3 {[%emt 0:00:28]} Nd4 {[%emt 0:00:34]} 22. Rf2 {[%emt 0:00:51]} Rad8 {[%emt 0:07:53]} 23. Rfd2 {[%emt 0:01:12]} Kf8 {[%emt 0:02:02]} 24. h4 {[%emt 0:14:13]} h6 {[%emt 0:02:12]} 25. Kf2 {[%emt 0:00:11]} Ke7 {[%emt 0:00:44]} 26. Bc2 {[%emt 0:01:20]} g5 {[%emt 0:02:31]} 27. h5 {[%emt 0:01:04]} Rg8 {[%emt 0:01:38]} 28. g4 {[%emt 0:00:30]} Ke6 {[%emt 0:01:54]} 29. Rxd4 {[%emt 0:03:01]} cxd4 {[%emt 0:00:05]} 30. Nb5 {[%emt 0:00:10]} Ke5 {[%emt 0:05:32]} 31. Nxd4 {[%emt 0:00:08]} Rh8 {[%emt 0:02:18]} 32. Ke3 {[%emt 0:00:23]} a6 {[%emt 0:02:44]} 33. b4 {[%emt 0:02:11]} Rc8 {[%emt 0:01:09]} 34. Bd3 {[%emt 0:01:38]} Bc6 {[%emt 0:01:25]} 35. Nf5 {[%emt 0:00:59]} a5 {[%emt 0:00:32]} 36. Be2 {[%emt 0:00:36]} Rcd8 {[%emt 0:00:49]} 37. a3 {[%emt 0:01:07]} axb4 {[%emt 0:01:36]} 38. axb4 {[%emt 0:00:03]} Bb7 {[%emt 0:00:09]} 39. Rd2 {[%emt 0:00:50]} Bc6 {[%emt 0:00:45]} 40. Rd1 {[%emt 0:00:00]} Bb7 {[%emt 0:00:00]} 41. Rd3 {[%emt 0:13:19]} Bc6 {[%emt 0:01:49]} 42. Bd1 {[%emt 0:01:09]} f6 {[%emt 0:05:37]} 43. Ne7 {[%emt 0:00:54]} Be8 {[%emt 0:01:32]} 44. Bb3 {[%emt 0:02:28]} f5 {[%emt 0:18:57]} 45. exf5 {[%emt 0:05:56]} Rh7 {[%emt 0:00:59]} 46. Nd5 {[%emt 0:02:02]} b5 {[%emt 0:00:06]} 47. Kd2 {[%emt 0:00:50]} bxc4 {[%emt 0:01:02]} 48. Bxc4 {[%emt 0:00:17]} Bc6 {[%emt 0:00:39]} 49. Re3+ {[%emt 0:00:30]} 1-0

[Event "69th RUS-ch Women Higher League 2019"]
[Site "Yaroslavl"]
[Date "2019.06.30"]
[Round "4.10"]
[White "Bivol, Alina"]
[Black "Maletina, Tatiana"]
[Result "1/2-1/2"]
[ECO "A06"]
[WhiteElo "2391"]
[BlackElo "2273"]
[Annotator "NA"]
[PlyCount "80"]
[EventDate "2019.06.27"]
[EventType "swiss"]
[EventCountry "RUS"]
[SourceTitle "playchess.com"]
[Source "ChessBase"]
[SourceQuality "1"]
[TimeControl "40/5400+30:1800+30"]

1. Nf3 {[%emt 0:00:00]} d5 {[%emt 0:00:00]} 2. g3 {[%emt 0:00:00]} g6 {[%emt 0:00:00]} 3. Bg2 {[%emt 0:01:23]} Bg7 {[%emt 0:00:00]} 4. d4 {[%emt 0:00:13]} Nf6 {[%emt 0:00:46]} 5. O-O {[%emt 0:00:55]} O-O {[%emt 0:00:16]} 6. Nbd2 {[%emt 0:06:14]} c6 {[%emt 0:00:43]} 7. c4 {[%emt 0:00:38]} Bf5 {[%emt 0:00:59]} 8. b3 {[%emt 0:02:19]} Ne4 {[%emt 0:00:24]} 9. Bb2 {[%emt 0:00:13]} Nd7 {[%emt 0:00:16]} 10. e3 {[%emt 0:02:19]} a5 {[%emt 0:00:38]} 11. Nxe4 {[%emt 0:01:06]} Bxe4 {[%emt 0:00:27]} 12. Qe2 {[%emt 0:05:54]} e6 {[%emt 0:02:20]} 13. cxd5 {[%emt 0:01:28]} exd5 {[%emt 0:00:48]} 14. Rfc1 {[%emt 0:00:36]} a4 {[%emt 0:06:41]} 15. Bh3 {[%emt 0:04:02]} axb3 {[%emt 0:26:45]} 16. axb3 {[%emt 0:00:23]} Rxa1 {[%emt 0:00:04]} 17. Bxa1 {[%emt 0:01:37]} Bxf3 {[%emt 0:04:42]} 18. Qxf3 {[%emt 0:00:02]} Nf6 {[%emt 0:00:08]} 19. Qe2 {[%emt 0:01:59]} Qb6 {[%emt 0:00:20]} 20. Qa2 {[%emt 0:00:14]} Ne4 {[%emt 0:01:28]} 21. Bf1 {[%emt 0:00:31]} f5 {[%emt 0:01:23]} 22. Bd3 {[%emt 0:08:20]} Qb4 {[%emt 0:01:51]} 23. Kg2 {[%emt 0:04:26]} Re8 {[%emt 0:04:18]} 24. Rc2 {[%emt 0:02:12]} Qf8 {[%emt 0:02:38]} 25. Bb2 {[%emt 0:07:08]} Ra8 {[%emt 0:00:44]} 26. Qb1 {[%emt 0:01:39]} Qb4 {[%emt 0:01:55]} 27. Bc1 {[%emt 0:02:05]} Bf8 {[%emt 0:09:21]} 28. Qb2 {[%emt 0:08:20]} Qb6 {[%emt 0:11:05]} 29. f3 {[%emt 0:02:40]} Nf6 {[%emt 0:02:19]} 30. Qb1 {[%emt 0:01:22]} Qa5 {[%emt 0:00:33]} 31. Kf2 {[%emt 0:10:15]} Bb4 {[%emt 0:01:07]} 32. Re2 {[%emt 0:00:15]} Bc3 {[%emt 0:01:48]} 33. Bb2 {[%emt 0:02:24]} Qb4 {[%emt 0:01:31]} 34. Bxc3 {[%emt 0:01:25]} Qxc3 {[%emt 0:00:05]} 35. Qc2 {[%emt 0:00:15]} Qb4 {[%emt 0:01:32]} 36. Qd1 {[%emt 0:02:40]} Qc3 {[%emt 0:01:55]} 37. Qc2 {[%emt 0:01:48]} Qb4 {[%emt 0:01:09]} 38. Qd1 {[%emt 0:00:33]} Qc3 {[%emt 0:00:47]} 39. Qc2 {[%emt 0:00:30]} Qb4 {[%emt 0:04:05]} 40. Qd1 {[%emt 0:00:00]} Qc3 {[%emt 0:00:00]} 1/2-1/2

[Event "69th RUS-ch Women Higher League 2019"]
[Site "Yaroslavl"]
[Date "2019.06.30"]
[Round "4.11"]
[White "Dimitrova, Aleksandra"]
[Black "Ovod, Evgenija"]
[Result "1-0"]
[ECO "C65"]
[WhiteElo "2273"]
[BlackElo "2361"]
[Annotator "NA"]
[PlyCount "143"]
[EventDate "2019.06.27"]
[EventType "swiss"]
[EventCountry "RUS"]
[SourceTitle "playchess.com"]
[Source "ChessBase"]
[SourceQuality "1"]
[TimeControl "40/5400+30:1800+30"]

1. e4 {[%emt 0:00:00]} e5 {[%emt 0:00:00]} 2. Nf3 {[%emt 0:00:00]} Nc6 {[%emt 0:00:00]} 3. Bb5 {[%emt 0:00:00]} Nf6 {[%emt 0:00:00]} 4. d3 {[%emt 0:00:00]} Bc5 {[%emt 0:00:00]} 5. Bxc6 {[%emt 0:00:05]} dxc6 {[%emt 0:02:36]} 6. Nbd2 {[%emt 0:00:15]} Be6 {[%emt 0:07:37]} 7. Qe2 {[%emt 0:00:22]} Nd7 {[%emt 0:02:04]} 8. Nb3 {[%emt 0:00:19]} Be7 {[%emt 0:03:25]} 9. d4 {[%emt 0:08:00]} f6 {[%emt 0:00:18]} 10. dxe5 {[%emt 0:02:45]} fxe5 {[%emt 0:00:07]} 11. Ng5 {[%emt 0:02:25]} Bxg5 {[%emt 0:07:53]} 12. Qh5+ {[%emt 0:00:09]} Bf7 {[%emt 0:00:05]} 13. Qxg5 {[%emt 0:00:06]} Qxg5 {[%emt 0:00:14]} 14. Bxg5 {[%emt 0:00:04]} a5 {[%emt 0:00:08]} 15. Be3 {[%emt 0:19:37]} b6 {[%emt 0:00:59]} 16. Nd2 {[%emt 0:05:51]} c5 {[%emt 0:00:42]} 17. a4 {[%emt 0:02:42]} h6 {[%emt 0:06:03]} 18. O-O-O {[%emt 0:09:22]} Ke7 {[%emt 0:06:36]} 19. f4 {[%emt 0:03:25]} exf4 {[%emt 0:01:44]} 20. Bxf4 {[%emt 0:00:08]} Rac8 {[%emt 0:00:15]} 21. Nf3 {[%emt 0:03:46]} Be8 {[%emt 0:09:17]} 22. Nh4 {[%emt 0:11:40]} g6 {[%emt 0:00:34]} 23. Rhf1 {[%emt 0:02:51]} Ke6 {[%emt 0:03:00]} 24. Bd2 {[%emt 0:00:44]} Rh7 {[%emt 0:25:40]} 25. Bc3 {[%emt 0:03:19]} Rf7 {[%emt 0:00:14]} 26. Rf3 {[%emt 0:07:00]} c4 {[%emt 0:06:27]} 27. Rg3 {[%emt 0:04:28]} g5 {[%emt 0:06:53]} 28. Nf5 {[%emt 0:00:24]} Nc5 {[%emt 0:00:06]} 29. Nxh6 {[%emt 0:00:37]} Rh7 {[%emt 0:00:46]} 30. Nf5 {[%emt 0:04:10]} Nxe4 {[%emt 0:00:29]} 31. Re3 {[%emt 0:01:00]} Kxf5 {[%emt 0:00:23]} 32. Rf1+ {[%emt 0:00:09]} Kg6 {[%emt 0:02:37]} 33. Rxe4 {[%emt 0:00:05]} Rf7 {[%emt 0:00:04]} 34. Re6+ {[%emt 0:03:09]} Kh7 {[%emt 0:00:09]} 35. Rfe1 {[%emt 0:04:02]} Bd7 {[%emt 0:00:36]} 36. R6e5 {[%emt 0:01:05]} Kg6 {[%emt 0:01:24]} 37. R1e4 {[%emt 0:01:32]} c5 {[%emt 0:07:15]} 38. Rd5 {[%emt 0:01:29]} Rc6 {[%emt 0:01:23]} 39. Ree5 {[%emt 0:00:59]} Rf1+ {[%emt 0:00:12]} 40. Kd2 {[%emt 0:00:00]} Bf5 {[%emt 0:00:00]} 41. g4 {[%emt 0:02:21]} Be6 {[%emt 0:02:16]} 42. Rxg5+ {[%emt 0:02:47]} Kf7 {[%emt 0:00:06]} 43. Rg7+ {[%emt 0:02:06]} Ke8 {[%emt 0:00:04]} 44. Rh5 {[%emt 0:00:55]} Bf7 {[%emt 0:00:05]} 45. Re5+ {[%emt 0:05:44]} Kf8 {[%emt 0:03:31]} 46. Rh7 {[%emt 0:02:15]} Rd6+ {[%emt 0:03:49]} 47. Ke2 {[%emt 0:01:23]} Rdf6 {[%emt 0:00:32]} 48. Rh8+ {[%emt 0:04:27]} Kg7 {[%emt 0:00:04]} 49. Rf5 {[%emt 0:02:36]} R1xf5 {[%emt 0:00:40]} 50. gxf5 {[%emt 0:00:01]} Kxh8 {[%emt 0:00:30]} 51. Bxf6+ {[%emt 0:00:02]} Kg8 {[%emt 0:00:36]} 52. Kd2 {[%emt 0:02:06]} Be8 {[%emt 0:00:21]} 53. Bd8 {[%emt 0:00:37]} Bxa4 {[%emt 0:03:16]} 54. Bxb6 {[%emt 0:00:04]} Bd7 {[%emt 0:00:06]} 55. Bxa5 {[%emt 0:00:47]} Bxf5 {[%emt 0:00:10]} 56. Kc3 {[%emt 0:00:15]} Kf7 {[%emt 0:02:03]} 57. Kxc4 {[%emt 0:01:49]} Bxc2 {[%emt 0:00:05]} 58. Bb6 {[%emt 0:00:39]} Ke6 {[%emt 0:00:28]} 59. Bxc5 {[%emt 0:00:06]} Bd1 {[%emt 0:00:07]} 60. b4 {[%emt 0:00:26]} Be2+ {[%emt 0:00:05]} 61. Kd4 {[%emt 0:00:05]} Bf1 {[%emt 0:01:18]} 62. Bf8 {[%emt 0:00:15]} Bh3 {[%emt 0:02:39]} 63. Kc5 {[%emt 0:00:12]} Kd7 {[%emt 0:00:07]} 64. Kb6 {[%emt 0:00:58]} Ke8 {[%emt 0:01:08]} 65. Bd6 {[%emt 0:00:22]} Kd7 {[%emt 0:00:04]} 66. Bf4 {[%emt 0:00:16]} Bf1 {[%emt 0:01:16]} 67. h4 {[%emt 0:00:13]} Be2 {[%emt 0:00:03]} 68. b5 {[%emt 0:02:14]} Kc8 {[%emt 0:01:19]} 69. Kc6 {[%emt 0:01:26]} Bf3+ {[%emt 0:00:04]} 70. Kd6 {[%emt 0:00:26]} Kb7 {[%emt 0:00:04]} 71. Be3 {[%emt 0:00:18]} Be2 {[%emt 0:00:21]} 72. b6 {[%emt 0:00:04]} 1-0

[Event "69th RUS-ch Women Higher League 2019"]
[Site "Yaroslavl"]
[Date "2019.06.30"]
[Round "4.12"]
[White "Ambartsumova, Karina"]
[Black "Garifullina, Leya"]
[Result "1/2-1/2"]
[ECO "A05"]
[WhiteElo "2359"]
[BlackElo "2246"]
[Annotator "NA"]
[PlyCount "47"]
[EventDate "2019.06.27"]
[EventType "swiss"]
[EventCountry "RUS"]
[SourceTitle "playchess.com"]
[Source "ChessBase"]
[SourceQuality "1"]
[TimeControl "40/5400+30:1800+30"]

1. Nf3 {[%emt 0:00:00]} Nf6 {[%emt 0:00:00]} 2. e3 {[%emt 0:00:31]} b6 {[%emt 0:00:53]} 3. b3 {[%emt 0:02:35]} Bb7 {[%emt 0:01:07]} 4. Bb2 {[%emt 0:01:52]} e6 {[%emt 0:01:44]} 5. d4 {[%emt 0:08:59]} Be7 {[%emt 0:01:58]} 6. Bd3 {[%emt 0:01:26]} O-O {[%emt 0:01:59]} 7. Nbd2 {[%emt 0:03:28]} d5 {[%emt 0:01:16]} 8. O-O {[%emt 0:02:47]} Nbd7 {[%emt 0:00:18]} 9. Qe2 {[%emt 0:07:27]} c5 {[%emt 0:05:25]} 10. c4 {[%emt 0:13:01]} dxc4 {[%emt 0:05:08]} 11. bxc4 {[%emt 0:03:45]} Qc7 {[%emt 0:01:18]} 12. Rac1 {[%emt 0:01:29]} Rfd8 {[%emt 0:01:40]} 13. Rfd1 {[%emt 0:02:05]} Rac8 {[%emt 0:02:36]} 14. Nf1 {[%emt 0:11:44]} Nf8 {[%emt 0:11:50]} 15. Ne5 {[%emt 0:07:18]} Ng6 {[%emt 0:01:47]} 16. Ng3 {[%emt 0:03:23]} Bd6 {[%emt 0:06:35]} 17. Nxg6 {[%emt 0:04:40]} hxg6 {[%emt 0:01:09]} 18. Re1 {[%emt 0:01:47]} Be7 {[%emt 0:02:46]} 19. Red1 {[%emt 0:06:53]} Rd7 {[%emt 0:05:15]} 20. Bb1 {[%emt 0:02:04]} Ba6 {[%emt 0:03:52]} 21. Bd3 {[%emt 0:00:31]} Bb7 {[%emt 0:01:51]} 22. Bb1 {[%emt 0:00:06]} Rcd8 {[%emt 0:01:05]} 23. Bc2 {[%emt 0:01:16]} Rc8 {[%emt 0:01:45]} 24. Bb1 1/2-1/2

[Event "69th RUS-ch Women Higher League 2019"]
[Site "Yaroslavl"]
[Date "2019.06.30"]
[Round "4.13"]
[White "Diakonova, Ekaterina"]
[Black "Solozhenkina, Elizaveta"]
[Result "1/2-1/2"]
[ECO "B90"]
[WhiteElo "2196"]
[BlackElo "2324"]
[Annotator "NA"]
[PlyCount "110"]
[EventDate "2019.06.27"]
[EventType "swiss"]
[EventCountry "RUS"]
[SourceTitle "playchess.com"]
[Source "ChessBase"]
[SourceQuality "1"]
[TimeControl "40/5400+30:1800+30"]

1. e4 {[%emt 0:00:00]} c5 {[%emt 0:00:00]} 2. Nf3 {[%emt 0:00:00]} d6 {[%emt 0:00:00]} 3. d4 {[%emt 0:00:00]} cxd4 {[%emt 0:00:00]} 4. Nxd4 {[%emt 0:00:00]} Nf6 {[%emt 0:00:02]} 5. Nc3 {[%emt 0:00:00]} a6 {[%emt 0:00:08]} 6. Be3 {[%emt 0:00:00]} e5 {[%emt 0:09:52]} 7. Nb3 {[%emt 0:00:00]} Be6 {[%emt 0:07:33]} 8. Qd2 {[%emt 0:00:04]} Be7 {[%emt 0:03:31]} 9. f3 {[%emt 0:00:05]} O-O {[%emt 0:01:09]} 10. O-O-O {[%emt 0:00:05]} Nbd7 {[%emt 0:00:54]} 11. g4 {[%emt 0:00:05]} b5 {[%emt 0:00:04]} 12. g5 {[%emt 0:00:14]} b4 {[%emt 0:01:06]} 13. Ne2 {[%emt 0:00:07]} Ne8 {[%emt 0:00:12]} 14. f4 {[%emt 0:00:06]} a5 {[%emt 0:00:25]} 15. f5 {[%emt 0:00:07]} Bxb3 {[%emt 0:01:43]} 16. cxb3 {[%emt 0:00:28]} a4 {[%emt 0:00:17]} 17. bxa4 {[%emt 0:00:22]} Rxa4 {[%emt 0:01:14]} 18. Kb1 {[%emt 0:00:06]} Qa8 {[%emt 0:28:23]} 19. Nc1 {[%emt 0:09:38]} b3 {[%emt 0:03:40]} 20. Bb5 {[%emt 0:30:36]} Rxa2 {[%emt 0:05:39]} 21. Nxb3 {[%emt 0:00:10]} Nc5 {[%emt 0:01:23]} 22. Nxc5 {[%emt 0:14:28]} dxc5 {[%emt 0:03:46]} 23. Qd5 {[%emt 0:13:41]} Ra1+ {[%emt 0:07:54]} 24. Kc2 {[%emt 0:00:03]} Qxd5 {[%emt 0:00:41]} 25. exd5 {[%emt 0:00:05]} Rxd1 {[%emt 0:00:18]} 26. Rxd1 {[%emt 0:00:14]} Nd6 {[%emt 0:01:08]} 27. f6 {[%emt 0:01:23]} gxf6 {[%emt 0:02:19]} 28. gxf6 {[%emt 0:00:05]} Bxf6 {[%emt 0:00:22]} 29. Rg1+ {[%emt 0:01:05]} Kh8 {[%emt 0:00:25]} 30. Bxc5 {[%emt 0:00:35]} Rc8 {[%emt 0:01:49]} 31. Bc6 {[%emt 0:00:06]} Nc4 {[%emt 0:05:27]} 32. b4 {[%emt 0:04:42]} e4 {[%emt 0:01:08]} 33. Re1 {[%emt 0:11:49]} Ne5 {[%emt 0:04:49]} 34. Bd4 {[%emt 0:00:35]} Bg7 {[%emt 0:00:23]} 35. Rg1 {[%emt 0:09:07]} f6 {[%emt 0:07:40]} 36. Bxe5 {[%emt 0:01:05]} fxe5 {[%emt 0:00:02]} 37. b5 {[%emt 0:01:06]} Bf8 {[%emt 0:00:29]} 38. b6 {[%emt 0:02:30]} Bd6 {[%emt 0:00:24]} 39. Kc3 {[%emt 0:03:25]} e3 {[%emt 0:00:57]} 40. b7 {[%emt 0:00:00]} Rf8 {[%emt 0:00:00]} 41. Bd7 {[%emt 0:17:58]} e2 {[%emt 0:11:18]} 42. Be6 {[%emt 0:02:40]} e4 {[%emt 0:03:34]} 43. Re1 {[%emt 0:01:56]} Rf2 {[%emt 0:07:57]} 44. Kc4 {[%emt 0:05:51]} Rf1 {[%emt 0:01:48]} 45. Rxe2 {[%emt 0:00:07]} Rb1 {[%emt 0:00:12]} 46. Rg2 {[%emt 0:03:18]} h6 {[%emt 0:02:09]} 47. Bc8 {[%emt 0:00:58]} e3 {[%emt 0:02:20]} 48. h3 {[%emt 0:00:50]} Rb4+ {[%emt 0:03:28]} 49. Kd3 {[%emt 0:00:22]} Bf4 {[%emt 0:01:52]} 50. Rg4 {[%emt 0:02:05]} Rb3+ {[%emt 0:00:04]} 51. Ke2 {[%emt 0:00:26]} Rb2+ {[%emt 0:00:38]} 52. Ke1 {[%emt 0:00:01]} Rb1+ {[%emt 0:01:25]} 53. Ke2 {[%emt 0:00:00]} Rb2+ {[%emt 0:00:05]} 54. Ke1 {[%emt 0:01:06]} Rb1+ {[%emt 0:00:05]} 55. Ke2 {[%emt 0:00:03]} Rb2+ {[%emt 0:00:06]} 1/2-1/2